bitfinex/quotes_SOLUSD_20250204
["timestamp","ask_amount","ask_price","bid_price","bid_amount"]
[1738665779896,3.54,207.77,207.74,22.25420624]
[1738665780470,0.25098,207.81,207.74,27.06770624]
[1738665780677,0.12549,207.81,207.74,27.06770624]
[1738665781173,27.31708624,207.82,207.74,27.06770624]
[1738665781372,0.25098,207.79,207.72,22.25420624]
[1738665781589,22.25420624,207.78,207.71,4.8144]
[1738665782091,22.25420624,207.78,207.7,27.09860624]
[1738665782297,0.25098,207.77,207.7,27.09860624]
[1738665782608,22.25420624,207.76,207.7,0.03]
[1738665782981,22.25420624,207.78,207.7,22.28420624]
[1738665784594,22.25420624,207.78,207.71,4.8144]
[1738665785106,0.063,207.81,207.74,22.25420624]
[1738665785268,0.063,207.81,207.76,22.25420624]
[1738665785596,0.063,207.81,207.8,22.25420624]
[1738665786372,0.063,207.81,207.8,27.06650624]
[1738665788889,0.063,207.81,207.8,24.8123]
[1738665789102,0.063,207.81,207.8,4.8123]
[1738665789277,0.063,207.81,207.8,27.06650624]
[1738665789866,0.063,207.86,207.82,0.25098]
[1738665790065,0.063,207.86,207.85,22.25420624]
[1738665790267,24.93226789,207.92,207.83,22.25420624]
[1738665790503,22.25420624,207.91,207.83,22.25420624]
[1738665790691,22.25420624,207.91,207.84,4.8113]
[1738665791495,10.067,207.94,207.85,22.25420624]
[1738665791496,22.25420624,207.93,207.85,22.25420624]
[1738665791789,27.06300624,207.95,207.87,22.25420624]
[1738665792198,22.25420624,207.95,207.87,22.25420624]
[1738665792379,57.16,207.96,207.93,22.25420624]
[1738665792586,57.16,207.96,207.95,22.25420624]
[1738665792782,57.16,207.96,207.91,22.25420624]
[1738665792985,0.12549,207.95,207.87,4.8105]
[1738665793505,0.12549,207.95,207.88,22.25420624]
[1738665794001,79.41420624,207.96,207.88,22.25420624]
[1738665794317,22.25420624,207.94,207.86,27.06500624]
[1738665794482,22.25420624,207.94,207.82,1.86608]
[1738665794483,22.25420624,207.92,207.87,20.0]
[1738665795000,84.22300624,207.96,207.88,22.25420624]
[1738665795373,0.31398,207.95,207.88,22.25420624]
[1738665795572,0.063,207.95,207.88,22.25420624]
[1738665796199,0.063,207.95,207.92,22.25420624]
[1738665796417,0.063,207.95,207.94,22.25420624]
[1738665796612,0.063,207.95,207.94,36.0325311]
[1738665796774,0.063,207.95,207.94,40.8415311]
[1738665797272,0.0001,208.03,207.97,20.0]
[1738665797480,0.0001,208.03,208.01,36.0325311]
[1738665797875,0.0001,208.03,207.99,36.0325311]
[1738665799380,0.0001,208.03,207.97,60.8408311]
[1738665799691,0.0001,208.03,207.99,36.0325311]
[1738665800098,0.0001,208.03,207.97,60.8408311]
[1738665801092,0.0001,208.03,207.99,36.0325311]
[1738665802388,0.0001,208.03,208.01,36.0325311]
[1738665802807,0.0001,208.03,208.01,40.8399311]
[1738665803005,0.0001,208.03,208.01,56.43586223]
[1738665805291,0.0001,208.03,208.02,13.41184853]
[1738665806331,0.0001,208.03,208.02,14.91380853]
[1738665806500,0.0001,208.03,208.02,13.66282853]
[1738665807100,0.0001,208.03,208.02,18.47002853]
[1738665807318,0.0001,208.03,208.02,19.65126172]
[1738665809522,0.0001,208.03,208.02,4.8072]
[1738665811827,0.0001,208.03,208.01,36.0325311]
[1738665812003,0.0001,208.03,208.01,40.8399311]
[1738665814052,0.0001,208.03,208.02,0.25098]
[1738665814219,0.0001,208.03,208.01,40.8399311]
[1738665817333,0.0001,208.03,208.02,0.25098]
[1738665817540,0.0001,208.03,208.02,0.97192335]
[1738665818251,0.03,208.05,208.02,0.97192335]
[1738665818252,1e-08,208.05,208.04,20.25098]
[1738665818459,0.03,208.11,208.05,0.25098]
[1738665818616,0.03,208.11,208.08,22.14687998]
[1738665818815,0.03,208.11,208.1,22.14687998]
[1738665819435,0.03,208.11,208.1,26.95217998]
[1738665819955,0.03,208.11,208.08,22.14687998]
[1738665820170,0.03,208.11,208.08,26.95257998]
[1738665821143,0.03,208.11,208.1,22.14687998]
[1738665821543,0.03,208.11,208.1,26.95217998]
[1738665821754,0.03,208.11,208.1,27.20315998]
[1738665821938,0.03,208.19,208.13,20.0]
[1738665822136,0.03,208.19,208.15,22.14687998]
[1738665822653,0.03,208.19,208.13,42.14687998]
[1738665823657,0.03,208.19,208.15,22.14687998]
[1738665824034,0.03,208.19,208.17,22.14687998]
[1738665824851,0.03,208.19,208.17,23.32873931]
[1738665825244,0.03,208.19,208.18,0.97133127]
[1738665825861,0.03,208.19,208.18,5.77483127]
[1738665827154,0.0001,208.19,208.18,41.58453978]
[1738665827355,0.063,208.23,208.22,0.25098]
[1738665827574,0.063,208.23,208.22,23.11792974]
[1738665827940,0.063,208.23,208.22,42.14687998]
[1738665828178,0.063,208.23,208.22,43.11803722]
[1738665829253,0.063,208.23,208.22,47.20045998]
[1738665829433,0.063,208.23,208.22,40.61230851]
[1738665829641,4.7993,208.37,208.23,13.66282853]
[1738665829850,6.1292,208.37,208.27,0.25098]
[1738665830064,6.1292,208.37,208.31,22.14687998]
[1738665830245,6.1292,208.37,208.35,22.14687998]
[1738665830562,6.1292,208.37,208.33,22.14687998]
[1738665830856,57.04,208.4,208.35,22.14687998]
[1738665831060,57.04,208.4,208.3,22.14687998]
[1738665831061,57.04,208.4,208.37,22.14687998]
[1738665831270,57.04,208.4,208.39,22.14687998]
[1738665831449,57.04,208.4,208.37,22.14687998]
[1738665832451,57.04,208.4,208.35,22.14687998]
[1738665834063,61.8384,208.4,208.35,22.14687998]
[1738665834376,22.14687998,208.38,208.31,22.14687998]
[1738665834580,0.12549,208.37,208.31,22.14687998]
[1738665835068,22.14687998,208.36,208.29,22.14687998]
[1738665835662,4.7996,208.35,208.29,22.14687998]
[1738665836469,22.39785998,208.34,208.25,22.14687998]
[1738665837554,6.3048,208.32,208.25,22.14687998]
[1738665837754,28.45167998,208.32,208.25,22.14687998]
[1738665838263,0.12549,208.31,208.25,22.14687998]
[1738665838454,22.14687998,208.3,208.23,22.14687998]
[1738665838660,0.12549,208.29,208.21,22.14687998]
[1738665838887,22.14687998,208.28,208.21,22.14687998]
[1738665839068,0.25098,208.27,208.21,22.14687998]
[1738665839370,0.12549,208.27,208.21,22.14687998]
[1738665839668,0.12549,208.27,208.19,22.17687998]
[1738665839669,4.92709,208.27,208.19,22.17687998]
[1738665840285,22.14687998,208.24,208.19,0.03]
[1738665840581,22.14687998,208.22,208.19,0.03]
[1738665841275,6.304,208.21,208.19,0.03]
[1738665843183,0.12549,208.25,208.19,22.17687998]
[1738665843363,0.12549,208.22,208.19,0.03]
[1738665843750,26.94877998,208.25,208.19,0.03]
[1738665844286,0.12549,208.25,208.19,0.03]
[1738665844489,6.1148,208.26,208.2,22.14687998]
[1738665844651,0.063,208.28,208.22,22.14687998]
[1738665844985,0.063,208.28,208.22,26.94927998]
[1738665845386,0.18849,208.28,208.23,22.14687998]
[1738665845563,0.063,208.28,208.24,22.14687998]
[1738665845872,0.063,208.28,208.26,22.14687998]
[1738665846258,0.063,208.28,208.22,22.14687998]
[1738665846468,0.063,208.28,208.22,26.94937998]
[1738665846662,0.063,208.28,208.24,26.94877998]
[1738665847965,0.063,208.28,208.26,22.14687998]
[1738665848885,0.063,208.28,208.26,26.94827998]
[1738665849254,0.063,208.28,208.24,22.14687998]
[1738665850065,0.063,208.28,208.26,22.14687998]
[1738665850480,0.063,208.28,208.27,0.25098]
[1738665850984,0.063,208.28,208.27,5.05238]
[1738665852065,0.063,208.28,208.27,18.46422853]
[1738665852693,0.063,208.28,208.27,20.09322853]
[1738665852894,63.3407,208.4,208.31,0.25098]
[1738665853102,63.3407,208.4,208.37,22.14687998]
[1738665853103,57.04,208.4,208.37,22.14687998]
[1738665853256,57.04,208.4,208.39,22.14687998]
[1738665854005,57.04,208.4,208.37,22.14687998]
[1738665854283,57.04,208.4,208.39,22.14687998]
[1738665854495,0.063,208.44,208.39,22.14687998]
[1738665854699,0.063,208.44,208.43,22.14687998]
[1738665855258,0.063,208.44,208.43,22.86638676]
[1738665855467,0.063,208.44,208.43,23.11736676]
[1738665856071,0.063,208.44,208.43,36.52921529]
[1738665856290,7.41458845,208.58,208.5,20.0]
[1738665856461,7.41458845,208.58,208.54,22.14687998]
[1738665856784,7.41458845,208.58,208.52,22.14687998]
[1738665856970,36.97605688,208.6,208.52,22.14687998]
[1738665856971,26.94077998,208.6,208.52,22.14687998]
[1738665857169,0.25098,208.6,208.54,22.14687998]
[1738665857506,6.6091,208.61,208.54,22.14687998]
[1738665857675,6.6091,208.61,208.5,22.86601158]
[1738665857864,0.063,208.61,208.6,22.14687998]
[1738665859088,0.063,208.61,208.58,22.14687998]
[1738665859300,0.063,208.61,208.56,22.14687998]
[1738665859477,0.063,208.61,208.55,22.14687998]
[1738665859674,0.063,208.61,208.58,22.14687998]
[1738665859885,0.063,208.61,208.59,22.14687998]
[1738665860089,0.063,208.61,208.57,22.14687998]
[1738665860304,0.063,208.61,208.54,22.14687998]
[1738665860814,0.063,208.61,208.57,22.14687998]
[1738665861103,0.063,208.61,208.55,42.14687998]
[1738665861470,0.063,208.61,208.59,22.14687998]
[1738665861870,0.063,208.61,208.6,22.14687998]
[1738665862874,0.063,208.61,208.59,22.14687998]
[1738665863081,0.063,208.61,208.6,22.14687998]
[1738665863915,0.063,208.61,208.58,22.14687998]
[1738665864293,0.063,208.61,208.57,22.14687998]
[1738665864686,0.063,208.61,208.55,22.14687998]
[1738665866212,0.063,208.61,208.56,22.14687998]
[1738665867106,0.063,208.61,208.56,26.94147998]
[1738665867488,0.063,208.61,208.57,22.14687998]
[1738665869307,0.063,208.61,208.59,22.14687998]
[1738665869484,0.063,208.61,208.6,22.14687998]
[1738665869690,0.063,208.61,208.59,22.14687998]
[1738665870293,0.063,208.61,208.6,22.14687998]
[1738665871879,85.65657998,208.72,208.61,5.04458]
[1738665872083,85.65657998,208.72,208.65,22.14687998]
[1738665872286,22.14687998,208.81,208.71,22.14687998]
[1738665872487,26.93587998,208.81,208.73,22.14687998]
[1738665873204,22.14687998,208.79,208.71,22.14687998]
[1738665873989,22.14687998,208.76,208.69,22.14687998]
[1738665874323,22.14687998,208.76,208.68,22.14687998]
[1738665874827,22.14687998,208.74,208.68,22.14687998]
[1738665875002,22.14687998,208.74,208.67,26.93897998]
[1738665876703,22.14687998,208.73,208.66,22.14687998]
[1738665876911,22.14687998,208.73,208.66,26.93927998]
[1738665877091,22.14687998,208.7,208.63,22.14687998]
[1738665877412,22.14687998,208.69,208.62,4.7931]
[1738665877926,22.14687998,208.65,208.58,4.7941]
[1738665878229,22.14687998,208.63,208.56,22.14687998]
[1738665878387,22.14687998,208.64,208.56,26.94157998]
[1738665878585,22.14687998,208.63,208.56,26.94157998]
[1738665879195,22.14687998,208.64,208.56,26.94157998]
[1738665879591,22.14687998,208.65,208.58,22.14687998]
[1738665879803,22.14687998,208.64,208.56,26.94157998]
[1738665880004,22.14687998,208.65,208.57,22.14687998]
[1738665880202,22.14687998,208.65,208.58,22.14687998]
[1738665880399,22.14687998,208.69,208.61,22.14687998]
[1738665880588,22.14687998,208.7,208.59,0.71897803]
[1738665880789,22.14687998,208.68,208.6,22.14687998]
[1738665881003,22.14687998,208.68,208.61,22.14687998]
[1738665881208,22.14687998,208.7,208.63,22.14687998]
[1738665881513,22.14687998,208.69,208.61,22.14687998]
[1738665882104,22.14687998,208.69,208.62,4.7934]
[1738665882505,22.14687998,208.7,208.63,22.14687998]
[1738665882825,22.14687998,208.71,208.63,22.14687998]
[1738665883131,6.5151,208.72,208.66,22.14687998]
[1738665884120,28.66197998,208.72,208.66,22.14687998]
[1738665884318,28.66197998,208.72,208.64,26.93957998]
[1738665884918,33.45307998,208.72,208.64,26.93957998]
[1738665885222,22.14687998,208.68,208.6,22.14687998]
[1738665885398,22.14687998,208.68,208.6,26.94057998]
[1738665885605,22.14687998,208.68,208.6,22.14687998]
[1738665886021,26.93897998,208.68,208.6,22.14687998]
[1738665886324,26.93897998,208.68,208.6,26.94067998]
[1738665888029,22.14687998,208.65,208.57,26.94137998]
[1738665888233,4.7921,208.68,208.62,22.14687998]
[1738665888438,0.12549,208.71,208.63,22.14687998]
[1738665888439,4.7917,208.7,208.63,22.14687998]
[1738665888610,22.14687998,208.69,208.62,22.14687998]
[1738665888933,22.14687998,208.67,208.6,22.14687998]
[1738665889509,22.14687998,208.65,208.57,22.14687998]
[1738665889731,22.14687998,208.65,208.58,22.14687998]
[1738665889905,4.91849,208.64,208.58,22.14687998]
[1738665890101,4.91849,208.64,208.56,26.94157998]
[1738665890315,4.91849,208.64,208.56,22.14687998]
[1738665890925,22.14687998,208.63,208.56,22.14687998]
[1738665891534,2.38878864,208.66,208.56,22.14687998]
[1738665891535,22.14687998,208.65,208.56,26.94157998]
[1738665891733,26.93957998,208.65,208.6,0.03]
[1738665892511,22.14687998,208.65,208.6,0.03]
[1738665894304,26.93957998,208.65,208.6,0.03]
[1738665894517,22.14687998,208.63,208.6,0.03]
[1738665894727,0.12549,208.64,208.6,0.03]
[1738665895137,22.14687998,208.63,208.6,0.03]
[1738665895429,4.7927,208.65,208.6,0.03]
[1738665895430,35.80970851,208.61,208.6,0.03]
[1738665896305,26.94047998,208.61,208.6,0.03]
[1738665896817,45.18330851,208.61,208.6,0.03]
[1738665897212,6.6633,208.62,208.6,0.03]
[1738665898633,11.4567,208.62,208.6,0.03]
[1738665898928,22.27236998,208.61,208.6,0.03]
[1738665899148,22.14687998,208.61,208.6,0.03]
[1738665899630,6.6633,208.62,208.6,0.03]
[1738665900129,22.14687998,208.61,208.6,0.03]
[1738665900335,41.32710715,208.61,208.6,0.03]
[1738665900835,6.6633,208.62,208.6,0.03]
[1738665901009,22.14687998,208.61,208.6,0.03]
[1738665901204,22.27236998,208.61,208.6,0.03]
[1738665901934,35.80970851,208.61,208.6,0.03]
[1738665902130,22.27236998,208.61,208.6,0.03]
[1738665902334,40.85428851,208.61,208.6,0.03]
[1738665902509,21.64687998,208.53,208.45,22.14687998]
[1738665903153,22.14687998,208.51,208.44,0.03]
[1738665903350,22.14687998,208.49,208.44,0.03]
[1738665903546,22.14687998,208.47,208.44,0.03]
[1738665904013,22.39785998,208.45,208.44,0.03]
[1738665904214,37.43250851,208.45,208.44,0.03]
[1738665904432,42.22980851,208.45,208.44,0.03]
[1738665905011,28.81795998,208.45,208.44,0.03]
[1738665905318,26.94357998,208.48,208.44,0.03]
[1738665905510,0.25098,208.47,208.44,0.03]
[1738665905711,0.25098,208.45,208.44,0.03]
[1738665905908,14.38662717,208.45,208.44,0.03]
[1738665906136,0.12549,208.45,208.44,0.03]
[1738665906637,14.38662717,208.45,208.44,0.03]
[1738665906850,14.63760717,208.45,208.44,0.03]
[1738665907153,22.39785998,208.41,208.4,0.03]
[1738665907826,37.06068851,208.41,208.4,0.03]
[1738665908031,37.53350715,208.41,208.4,0.03]
[1738665908337,0.50196,208.4,208.39,0.03]
[1738665908553,5.04938,208.4,208.39,0.03]
[1738665909042,18.71220853,208.4,208.39,0.03]
[1738665909239,47.29818851,208.4,208.39,0.0001]
[1738665909639,48.29818851,208.4,208.39,0.0001]
[1738665910840,24.90032853,208.4,208.39,0.0001]
[1738665911222,47.29818851,208.4,208.39,0.0001]
[1738665911530,0.12549,208.37,208.27,22.14687998]
[1738665911715,22.14687998,208.35,208.27,22.14687998]
[1738665912820,26.94647998,208.35,208.27,22.14687998]
[1738665913143,22.14687998,208.35,208.27,26.94827998]
[1738665913325,26.94647998,208.35,208.27,22.14687998]
[1738665913839,27.19715998,208.37,208.29,22.14687998]
[1738665914640,26.94617998,208.37,208.29,22.14687998]
[1738665915416,0.72379864,208.39,208.29,22.14687998]
[1738665915417,26.94557998,208.39,208.31,22.14687998]
[1738665915717,22.14687998,208.37,208.29,22.14687998]
[1738665916318,26.94557998,208.39,208.31,22.14687998]
[1738665916519,22.14687998,208.37,208.29,22.14687998]
[1738665917037,26.94557998,208.39,208.31,22.14687998]
[1738665918818,22.14687998,208.35,208.29,0.03]
[1738665919118,22.14687998,208.31,208.29,0.03]
[1738665919639,22.14687998,208.33,208.29,0.03]
[1738665919949,22.14687998,208.31,208.29,0.03]
[1738665920333,4.8003,208.33,208.29,0.03]
[1738665921149,22.14687998,208.36,208.29,22.17687998]
[1738665921318,4.7995,208.36,208.3,22.14687998]
[1738665921524,22.14687998,208.37,208.29,22.17687998]
[1738665921818,4.68,208.42,208.35,22.14687998]
[1738665921819,4.7982,208.41,208.35,22.14687998]
[1738665922028,28.16687998,208.43,208.35,22.14687998]
[1738665922229,4.798,208.42,208.35,22.14687998]
[1738665922742,4.798,208.42,208.34,4.7998]
[1738665922743,22.14687998,208.46,208.38,22.14687998]
[1738665923046,61.7368,208.47,208.4,22.14687998]
[1738665923418,22.14687998,208.45,208.37,22.14687998]
[1738665923619,22.14687998,208.42,208.33,22.14687998]
[1738665923833,22.14687998,208.39,208.31,22.14687998]
[1738665924141,14.13564717,208.42,208.29,6.3317]
[1738665924142,22.14687998,208.42,208.34,22.14687998]
[1738665924331,22.14687998,208.42,208.3,4.8007]
[1738665924644,22.14687998,208.44,208.36,22.14687998]
[1738665924941,83.88387998,208.47,208.4,22.14687998]
[1738665925140,83.88387998,208.47,208.32,0.25098]
[1738665925141,56.94,208.47,208.42,22.14687998]
[1738665925346,56.94,208.47,208.43,22.14687998]
[1738665925543,79.08687998,208.47,208.39,22.14687998]
[1738665925716,56.94,208.47,208.4,22.14687998]
[1738665926044,22.14687998,208.46,208.38,22.14687998]
[1738665926225,22.14687998,208.46,208.39,22.14687998]
[1738665926434,26.94397998,208.46,208.39,22.14687998]
[1738665926636,4.7971,208.46,208.4,22.14687998]
[1738665927164,56.94,208.47,208.41,22.14687998]
[1738665927462,56.94,208.47,208.45,22.14687998]
[1738665927616,56.94,208.47,208.42,22.14687998]
[1738665927822,56.94,208.47,208.41,22.14687998]
[1738665928043,56.94,208.47,208.42,22.14687998]
[1738665928349,56.94,208.47,208.44,22.14687998]
[1738665928544,56.94,208.47,208.42,22.14687998]
[1738665928740,56.94,208.47,208.41,26.94487998]
[1738665929047,56.94,208.47,208.42,22.14687998]
[1738665929246,56.94,208.47,208.43,22.14687998]
[1738665930852,57.003,208.47,208.43,26.94457998]
[1738665931625,57.003,208.47,208.41,26.94497998]
[1738665932149,83.94677998,208.47,208.39,26.94527998]
[1738665932349,22.14687998,208.45,208.37,26.94577998]
[1738665932647,22.14687998,208.44,208.37,22.14687998]
[1738665932849,22.14687998,208.44,208.35,1.6177]
[1738665932850,22.14687998,208.42,208.35,28.56397998]
[1738665933034,22.14687998,208.44,208.37,22.14687998]
[1738665933229,57.003,208.47,208.4,22.14687998]
[1738665933431,57.003,208.47,208.43,22.14687998]
[1738665933646,57.003,208.47,208.37,0.71972375]
[1738665933647,57.003,208.47,208.42,22.14687998]
[1738665933834,57.003,208.47,208.41,22.14687998]
[1738665934531,57.003,208.47,208.42,22.14687998]
[1738665934729,57.003,208.47,208.41,22.14687998]
[1738665935346,57.003,208.47,208.4,22.14687998]
[1738665935553,22.14687998,208.44,208.37,26.94597998]
[1738665935750,22.14687998,208.43,208.35,26.94627998]
[1738665935928,22.14687998,208.42,208.35,26.94627998]
[1738665936127,22.14687998,208.42,208.34,22.14687998]
[1738665936634,22.14687998,208.42,208.33,4.7998]
[1738665936635,22.14687998,208.4,208.32,22.14687998]
[1738665936854,22.14687998,208.4,208.32,26.94707998]
[1738665937151,22.14687998,208.4,208.34,22.14687998]
[1738665937351,26.94527998,208.4,208.34,22.14687998]
[1738665937656,26.94527998,208.4,208.32,26.94707998]
[1738665937853,26.94527998,208.4,208.3,22.14687998]
[1738665937854,35.80970851,208.38,208.3,22.14687998]
[1738665938030,22.14687998,208.36,208.29,0.03]
[1738665938348,13.66282853,208.36,208.29,22.17687998]
[1738665938549,22.14687998,208.35,208.29,0.03]
[1738665938923,26.94667998,208.35,208.29,0.03]
[1738665939128,4.7992,208.37,208.31,22.14687998]
[1738665939324,26.94607998,208.37,208.29,22.17687998]
[1738665939533,22.14687998,208.36,208.29,22.17687998]
[1738665940630,26.94627998,208.36,208.29,22.17687998]
[1738665941353,0.25098,208.33,208.29,0.03]
[1738665941540,22.14687998,208.33,208.29,0.03]
[1738665942358,0.72379864,208.34,208.29,0.03]
[1738665942359,22.14687998,208.34,208.29,0.03]
[1738665942653,4.8,208.33,208.29,0.03]
[1738665943043,22.14687998,208.34,208.29,0.03]
[1738665943348,22.14687998,208.37,208.31,22.14687998]
[1738665943550,13.66282853,208.36,208.29,22.17687998]
[1738665943755,22.14687998,208.35,208.29,0.03]
[1738665944354,22.14687998,208.33,208.29,0.03]
[1738665944535,4.7998,208.34,208.29,0.03]
[1738665944857,22.14687998,208.33,208.29,0.03]
[1738665945349,4.7998,208.34,208.29,0.03]
[1738665945950,4.7995,208.36,208.29,22.17687998]
[1738665946337,18.21134853,208.36,208.3,22.14687998]
[1738665946536,18.93514717,208.36,208.29,22.17687998]
[1738665947144,18.21134853,208.36,208.29,22.17687998]
[1738665948659,18.21134853,208.36,208.29,13.84551102]
[1738665948860,32.75065819,208.36,208.29,0.03]
[1738665949241,32.02685955,208.36,208.29,0.03]
[1738665949460,4.7995,208.36,208.3,13.81551102]
[1738665949759,4.7987,208.39,208.33,13.81551102]
[1738665950147,4.7987,208.39,208.31,13.81551102]
[1738665950352,18.61421102,208.39,208.32,13.81551102]
[1738665950570,20.0,208.35,208.29,0.03]
[1738665950732,13.81551102,208.3,208.29,0.03]
[1738665951052,34.53930966,208.3,208.29,0.03]
[1738665951435,34.53930966,208.3,208.24,0.03]
[1738665951638,13.81551102,208.26,208.24,0.03]
[1738665952640,4.8019,208.25,208.24,0.03]
[1738665952852,5.05288,208.25,208.24,0.03]
[1738665953244,5.05288,208.25,208.23,0.03]
[1738665953245,0.25098,208.24,208.23,0.03]
[1738665953449,28.20213819,208.24,208.23,0.03]
[1738665954038,0.25098,208.22,208.19,0.03]
[1738665954250,27.47833955,208.2,208.13,0.03]
[1738665954451,13.81551102,208.17,208.13,0.03]
[1738665954650,13.66282853,208.2,208.13,0.03]
[1738665954651,4.8042,208.15,208.13,0.03]
[1738665957462,22.8739928,208.19,208.13,0.03]
[1738665957763,6.0033,208.21,208.15,22.15019416]
[1738665957967,22.15019416,208.18,208.13,0.03]
[1738665958169,0.72379864,208.2,208.13,0.03]
[1738665958170,22.40117416,208.19,208.13,0.03]
[1738665958945,4.8035,208.18,208.13,0.03]
[1738665959143,0.25098,208.17,208.13,0.03]
[1738665960347,4.8032,208.2,208.14,22.15019416]
[1738665960541,4.8032,208.2,208.13,22.18019416]
[1738665960783,22.15019416,208.19,208.13,0.03]
[1738665961087,22.40117416,208.16,208.13,0.03]
[1738665961245,22.40117416,208.14,208.13,0.03]
[1738665961661,35.81302269,208.14,208.13,0.03]
[1738665962487,0.12549,208.13,208.04,22.15019416]
[1738665962645,22.15019416,208.09,208.01,22.18019416]
[1738665962851,22.15019416,208.06,208.01,0.03]
[1738665963190,26.95659416,208.06,208.01,0.03]
[1738665963358,4.8051,208.12,208.04,22.15019416]
[1738665963548,4.8051,208.12,208.03,20.0]
[1738665963751,13.41184853,208.13,208.03,20.0]
[1738665963951,0.25098,208.12,208.03,20.0]
[1738665964563,0.25098,208.12,208.05,22.15019416]
[1738665964888,22.15019416,208.11,208.04,22.15019416]
[1738665965192,13.66282853,208.1,207.99,22.15019416]
[1738665965356,22.15019416,208.06,207.99,4.8079]
[1738665965553,22.15019416,208.05,207.98,22.18019416]
[1738665965754,22.15019416,208.05,207.98,0.03]
[1738665966274,22.15019416,208.05,207.98,22.18019416]
[1738665966485,22.15019416,208.05,207.98,0.03]
[1738665966676,22.15019416,208.0,207.98,0.03]
[1738665967062,22.40117416,208.01,207.98,0.03]
[1738665968063,0.25098,207.99,207.93,26.95939416]
[1738665968267,22.15019416,207.96,207.89,26.96019416]
[1738665968677,22.15019416,207.97,207.9,42.15019416]
[1738665968876,13.66282853,207.96,207.9,22.15019416]
[1738665969052,35.81302269,207.96,207.88,22.15019416]
[1738665969453,0.25098,207.94,207.87,22.15019416]
[1738665969877,0.25098,207.94,207.86,8.2361]
[1738665969878,0.25098,207.94,207.88,22.15019416]
[1738665970073,5.05988,207.95,207.88,22.15019416]
[1738665970253,22.15019416,207.94,207.86,26.96099416]
[1738665970454,22.15019416,207.95,207.87,22.15019416]
[1738665970657,22.15019416,207.93,207.85,22.15019416]
[1738665971062,0.25098,207.92,207.85,22.15019416]
[1738665971266,22.15019416,207.89,207.81,33.26099416]
[1738665971454,22.15019416,207.87,207.8,0.03]
[1738665972076,26.96089416,207.87,207.8,0.03]
[1738665972598,22.15019416,207.87,207.8,0.03]
[1738665972774,4.8105,207.88,207.81,22.15019416]
[1738665973358,0.25098,207.84,207.8,0.03]
[1738665974080,22.15019416,207.87,207.81,22.15019416]
[1738665974281,27.6843928,207.89,207.81,22.15019416]
[1738665974584,0.25098,207.88,207.81,22.15019416]
[1738665974881,26.95999416,207.91,207.83,22.15019416]
[1738665975197,13.66282853,207.9,207.83,22.15019416]
[1738665975496,22.40117416,207.9,207.83,22.15019416]
[1738665975700,7.41458845,207.93,207.87,22.15019416]
[1738665975855,7.41458845,207.93,207.88,22.15019416]
[1738665976057,7.41458845,207.93,207.92,22.15019416]
[1738665976462,57.06,207.97,207.92,22.15019416]
[1738665976668,84.01849416,207.97,207.9,22.15019416]
[1738665977166,13.66282853,207.96,207.88,22.15019416]
[1738665977986,57.06,207.97,207.92,26.95969416]
[1738665978180,57.06,207.97,207.92,4.8095]
[1738665978358,57.06,207.97,207.92,26.95969416]
[1738665978782,57.06,207.97,207.92,24.8095]
[1738665978971,57.06,207.97,207.95,20.0]
[1738665979875,57.06,207.97,207.96,22.15019416]
[1738665980471,21.45482853,208.06,207.96,22.15019416]
[1738665980675,22.15019416,208.07,208.0,22.15019416]
[1738665981291,22.15019416,208.09,208.01,22.15019416]
[1738665981887,22.15019416,208.08,208.01,22.15019416]
[1738665983090,26.95599416,208.08,208.01,22.15019416]
[1738665983405,26.95529416,208.11,208.04,22.15019416]
[1738665983875,22.15019416,208.09,208.02,22.15019416]
[1738665984188,26.95529416,208.11,208.03,4.8069]
[1738665984371,22.15019416,208.11,208.04,22.15019416]
[1738665984568,0.063,208.13,208.07,22.15019416]
[1738665984872,0.063,208.13,208.06,22.15019416]
[1738665985291,0.063,208.13,208.03,16.8243]
[1738665985292,0.063,208.13,208.08,22.15019416]
[1738665986891,22.21319416,208.13,208.06,42.15019416]
[1738665987209,22.15019416,208.09,208.02,26.95739416]